fUSD/lending_fUSD_20250702
["ID","MTS","AMOUNT","RATE_DAILY","PERIOD"]
[368967209,1751416241594,-637.75,0.00016438,2]
[368967211,1751416241603,-490.0,0.00016438,2]
[368967213,1751416241613,-490.0,0.00016438,2]
[368967215,1751416241622,-418.45551021,0.00016438,2]
[368967217,1751416241631,-490.0,0.00016438,2]
[368967220,1751416241641,-490.0,0.00016438,2]
[368967222,1751416241650,-266.09056069,0.00016438,2]
[368967224,1751416241659,-490.0,0.00016438,2]
[368967225,1751416241669,-490.0,0.00016438,2]
[368967227,1751416241679,-527.04,0.00016438,2]
[368967229,1751416241688,-490.0,0.00016438,2]
[368967231,1751416241698,-490.0,0.00016438,2]
[368967233,1751416241707,-490.0,0.00016438,2]
[368967236,1751416241718,-1134.03,0.00016438,2]
[368967237,1751416241728,-490.0,0.00016438,2]
[368967239,1751416241737,-490.0,0.00016438,2]
[368967241,1751416241746,-490.0,0.00016438,2]
[368967243,1751416241756,-778.38,0.00016438,2]
[368967246,1751416241766,-490.0,0.00016438,2]
[368967247,1751416241775,-490.0,0.00016438,2]
[368967249,1751416241785,-531.25312637,0.00016438,2]
[368967251,1751416241794,-490.0,0.00016438,2]
[368967253,1751416241803,-490.0,0.00016438,2]
[368967255,1751416241813,-171.62,0.00016438,2]
[368967257,1751416241824,-545.23428314,0.00016438,2]
[368967259,1751416241833,-490.0,0.00016438,2]
[368967261,1751416241843,-490.0,0.00016438,2]
[368967263,1751416241852,-490.0,0.00016438,2]
[368967265,1751416241862,-490.0,0.00016438,2]
[368967267,1751416241871,-598.35,0.00016438,2]
[368967269,1751416241881,-490.0,0.00016438,2]
[368967271,1751416241891,-243.6,0.00016438,2]
[368967273,1751416241900,-490.0,0.00016438,2]
[368967275,1751416241910,-490.0,0.00016438,2]
[368967277,1751416241919,-490.0,0.00016438,2]
[368967279,1751416241930,-490.0,0.00016438,2]
[368967281,1751416241939,-157.847297,0.00016438,2]
[368967283,1751416241949,-192.355281,0.00016438,2]
[368967285,1751416241959,-490.0,0.00016438,2]
[368967287,1751416241967,-171.883433,0.00016438,2]
[368967288,1751416241977,-164.769667,0.00016438,2]
[368967290,1751416241986,-514.8,0.00016438,2]
[368967292,1751416241996,-490.0,0.00016438,2]
[368967294,1751416242006,-541.0925874,0.00016438,2]
[368967296,1751416242015,-490.0,0.00016438,2]
[368967298,1751416242024,-490.0,0.00016438,2]
[368967300,1751416242034,-226.33,0.00016438,2]
[368967302,1751416242043,-490.0,0.00016438,2]
[368967304,1751416242053,-490.0,0.00016438,2]
[368967306,1751416242062,-490.0,0.00016438,2]
[368967307,1751416242071,-490.0,0.00016438,2]
[368967309,1751416242080,-490.0,0.00016438,2]
[368967311,1751416242090,-490.0,0.00016438,2]
[368967312,1751416242099,-895.37,0.00016438,2]
[368967314,1751416242108,-490.0,0.00016438,2]
[368967316,1751416242117,-618.46,0.00016438,2]
[368967318,1751416242127,-490.0,0.00016438,2]
[368967320,1751416242136,-494.19,0.00016438,2]
[368967321,1751416242146,-490.0,0.00016438,2]
[368967323,1751416242155,-490.0,0.00016438,2]
[368967325,1751416242165,-783.09,0.00016438,2]
[368967327,1751416242175,-490.0,0.00016438,2]
[368967329,1751416242184,-490.0,0.00016438,2]
[368967330,1751416242193,-505.81606349,0.00016438,2]
[368967332,1751416242203,-490.0,0.00016438,2]
[368967334,1751416242212,-490.0,0.00016438,2]
[368967336,1751416242221,-490.0,0.00016438,2]
[368967337,1751416242231,-490.0,0.00016438,2]
[368967339,1751416242241,-490.0,0.00016438,2]
[368967341,1751416242250,-490.0,0.00016438,2]
[368967343,1751416242259,-490.0,0.00016438,2]
[368967344,1751416242269,-490.0,0.00016438,2]
[368967346,1751416242278,-490.0,0.00016438,2]
[368967348,1751416242287,-602.66,0.00016438,2]
[368967350,1751416242297,-490.0,0.00016438,2]
[368967352,1751416242307,-490.0,0.00016438,2]
[368967354,1751416242317,-393.01,0.00016438,2]
[368967355,1751416242327,-490.0,0.00016438,2]
[368967357,1751416242335,-490.0,0.00016438,2]
[368967359,1751416242344,-490.0,0.00016438,2]
[368967362,1751416242354,-490.0,0.00016438,2]
[368967363,1751416242363,-490.0,0.00016438,2]
[368967365,1751416242373,-490.0,0.00016438,2]
[368967367,1751416242387,-691.5,0.00016438,2]
[368967369,1751416242397,-490.0,0.00016438,2]
[368967371,1751416242406,-490.0,0.00016438,2]
[368967373,1751416242415,-490.0,0.00016438,2]
[368967375,1751416242425,-490.0,0.00016438,2]
[368967376,1751416242435,-448.9,0.00016438,2]
[368967378,1751416242444,-2160.71,0.00016438,2]
[368967380,1751416242454,-490.0,0.00016438,2]
[368967382,1751416242463,-274.12,0.00016438,2]
[368967385,1751416242472,-490.0,0.00016438,2]
[368967386,1751416242482,-956.8,0.00016438,2]
[368967389,1751416242492,-490.0,0.00016438,2]
[368967392,1751416242501,-459.87,0.00016438,2]
[368967395,1751416242509,-490.0,0.00016438,2]
[368967398,1751416242518,-490.0,0.00016438,2]
[368967400,1751416242528,-854.99,0.00016438,2]
[368967403,1751416242537,-500.0,0.00016438,2]
[368967406,1751416242546,-492.63,0.00016438,2]
[368967409,1751416242556,-2397.46,0.00016438,2]
[368967412,1751416242566,-490.0,0.00016438,2]
[368967414,1751416242575,-801.07,0.00016438,2]
[368967416,1751416242584,-490.0,0.00016438,2]
[368967418,1751416242593,-490.0,0.00016438,2]
[368967420,1751416242602,-490.0,0.00016438,2]
[368967422,1751416242611,-490.0,0.00016438,2]
[368967424,1751416242620,-490.0,0.00016438,2]
[368967425,1751416242629,-490.0,0.00016438,2]
[368967427,1751416242638,-584.36,0.00016438,2]
[368967429,1751416242647,-490.0,0.00016438,2]
[368967431,1751416242656,-490.0,0.00016438,2]
[368967432,1751416242665,-490.0,0.00016438,2]
[368967434,1751416242674,-490.0,0.00016438,2]
[368967436,1751416242683,-666.57,0.00016438,2]
[368967438,1751416242693,-490.0,0.00016438,2]
[368967440,1751416242702,-490.0,0.00016438,2]
[368967442,1751416242711,-490.0,0.00016438,2]
[368967443,1751416242719,-490.0,0.00016438,2]
[368967445,1751416242729,-490.0,0.00016438,2]
[368967447,1751416242739,-490.0,0.00016438,2]
[368967449,1751416242749,-490.0,0.00016438,2]
[368967451,1751416242758,-490.0,0.00016438,2]
[368967453,1751416242767,-510.3,0.00016438,2]
[368967455,1751416242776,-518.33,0.00016438,2]
[368967457,1751416242785,-844.37,0.00016438,2]
[368967458,1751416242794,-490.0,0.00016438,2]
[368967460,1751416242803,-490.0,0.00016438,2]
[368967462,1751416242813,-490.0,0.00016438,2]
[368967464,1751416242821,-490.0,0.00016438,2]
[368967466,1751416242830,-490.0,0.00016438,2]
[368967468,1751416242839,-490.0,0.00016438,2]
[368967470,1751416242848,-490.0,0.00016438,2]
[368967471,1751416242857,-375.41257074,0.00016438,2]
[368967474,1751416242866,-490.0,0.00016438,2]
[368967476,1751416242875,-490.0,0.00016438,2]
[368967478,1751416242884,-490.0,0.00016438,2]
[368967480,1751416242893,-490.0,0.00016438,2]
[368967482,1751416242902,-521.93393902,0.00016438,2]
[368967483,1751416242911,-490.0,0.00016438,2]
[368967485,1751416242920,-490.0,0.00016438,2]
[368967487,1751416242929,-151.00618369,0.0001644,2]
[368967489,1751416242939,-300.0,0.00016457,2]
[368967491,1751416242948,-651.0,0.00016499,2]
[368967493,1751416242957,-835.99020467,0.00016499,2]
[368967495,1751416242966,-2000.0,0.000165,5]
[368967497,1751416242975,-2000.0,0.000165,5]
[368967498,1751416242984,-5509.0,0.000165,5]
[368967500,1751416242994,-2375.058,0.0001655,2]
[368967502,1751416243003,-184.951,0.0001655,2]
[368967504,1751416243013,-1078.08,0.00016575,2]
[368967506,1751416243021,-200.0,0.00016578,2]
[368967508,1751416243031,-2057.84188371,0.00016585,2]
[368967509,1751416243040,-4336.8454,0.00016609,2]
[368967511,1751416243049,-179.88282033,0.00016618,2]
[368967513,1751416243059,-1995.40232742,0.00016623,2]
[368967515,1751416243068,-185.44579452,0.00016627,2]
[368967517,1751416243080,-177.96685913,0.00016627,2]
[368967519,1751416243089,-500.0,0.00016627,2]
[368967521,1751416243098,-500.0,0.00016627,2]
[368967523,1751416243107,-536.85680592,0.00016627,2]
[368967524,1751416243116,-500.0,0.00016627,2]
[368967526,1751416243126,-500.0,0.00016627,2]
[368967528,1751416243135,-326.69005796,0.00016627,2]
[368967530,1751416243145,-282.50596,0.00016628,2]
[368967532,1751416243155,-500.0,0.00016628,2]
[368967534,1751416243163,-500.0,0.00016628,2]
[368967536,1751416243172,-500.0,0.00016628,2]
[368967537,1751416243181,-500.0,0.00016628,2]
[368967539,1751416243190,-500.0,0.00016628,2]
[368967541,1751416243199,-500.0,0.00016628,2]
[368967543,1751416243208,-500.0,0.00016628,2]
[368967545,1751416243217,-500.0,0.00016628,2]
[368967546,1751416243226,-500.0,0.00016628,2]
[368967548,1751416243236,-500.0,0.00016628,2]
[368967550,1751416243246,-500.0,0.00016628,2]
[368967552,1751416243256,-500.0,0.00016628,2]
[368967554,1751416243264,-500.0,0.00016628,2]
[368967556,1751416243273,-500.0,0.00016628,2]
[368967557,1751416243282,-500.0,0.00016628,2]
[368967559,1751416243291,-500.0,0.00016628,2]
[368967561,1751416243300,-500.0,0.00016628,2]
[368967563,1751416243309,-500.0,0.00016628,2]
[368967564,1751416243319,-500.0,0.00016628,2]
[368967565,1751416243328,-417.8067,0.00016628,2]
[368967566,1751416243338,-1272.02700224,0.00016659,2]
[368967567,1751416243347,-151.0,0.0001668,2]
[368967568,1751416243357,-151.0,0.0001668,2]
[368967569,1751416243367,-658.389292,0.0001668,2]
[368967570,1751416243377,-658.389292,0.0001668,2]
[368967571,1751416243389,-153.82242,0.0001668,2]
[368967572,1751416243399,-153.372044,0.0001668,2]
[368967573,1751416243409,-45963.14459161,0.0001668,2]
[368967608,1751416243789,-250.0,0.00015604,2]
[368967610,1751416243799,-240.0,0.00016438,2]
[368967800,1751416245640,-250.0,0.00016438,2]
[368967802,1751416245650,-104.54920001,0.00016438,2]
[368967829,1751416245902,-385.45079999,0.00016438,2]
[368967831,1751416245912,-23.10391115,0.0001668,2]
[368967833,1751416245923,-345.0,0.0001668,2]
[368968103,1751416994873,162.79,0.000273,120]
[368968105,1751417011701,161.0,0.000273,120]
[368968107,1751417040602,300.0,0.00027397,120]
[368968326,1751417431752,-250.0,0.00015,2]
[368968327,1751417431762,-1000.0,0.00015251,2]
[368968328,1751417431774,-173.36,0.00015511,2]
[368968329,1751417431785,-291.04,0.00015527,2]
[368968330,1751417431796,-514.0,0.00015547,2]
[368968331,1751417431807,-250.0,0.00015687,2]
[368968332,1751417431818,-168.0,0.00015825,2]
[368968333,1751417431827,-207.4,0.0001589,2]
[368968334,1751417431837,-456.47,0.000159,2]
[368968335,1751417431847,-402.99,0.00015978,2]
[368968336,1751417431857,-1200.0,0.00016077,2]
[368968337,1751417431866,-150.0,0.00016078,2]
[368968338,1751417431875,-367.7,0.00016078,2]
[368968339,1751417431885,-273.5590721,0.00016078,2]
[368968340,1751417431896,-68.8609279,0.00016078,2]
[368968341,1751417431905,-189.12,0.00016078,2]
[368968342,1751417431915,-167.51,0.00016256,2]
[368968343,1751417431925,-295.0,0.00016318,2]
[368968344,1751417431935,-969.51209004,0.00016338,2]
[368968345,1751417431944,-1891.35457537,0.00016338,2]
[368968346,1751417431953,-1145.5932,0.00016338,2]
[368968347,1751417431963,-192.66363,0.00016377,2]
[368968348,1751417431972,-358.0,0.00016399,2]
[368968349,1751417431982,-262.34,0.00016428,2]
[368968350,1751417431991,-151.0,0.00016428,2]
[368968351,1751417432000,-500.0,0.00016437,2]
[368968352,1751417432010,-302.18743136,0.00016437,2]
[368968353,1751417432019,-602.88203763,0.00016437,2]
[368968354,1751417432029,-325.41719084,0.00016438,2]
[368968355,1751417432038,-189.90729658,0.00016438,2]
[368968356,1751417432047,-490.0,0.00016438,2]
[368968357,1751417432056,-490.0,0.00016438,2]
[368968358,1751417432066,-192.355282,0.00016438,2]
[368968360,1751417432075,-171.883433,0.00016438,2]
[368968362,1751417432084,-490.0,0.00016438,2]
[368968364,1751417432094,-490.0,0.00016438,2]
[368968366,1751417432103,-490.0,0.00016438,2]
[368968368,1751417432113,-622.27127972,0.00016438,2]
[368968370,1751417432122,-490.0,0.00016438,2]
[368968372,1751417432131,-441.21770115,0.00016438,2]
[368968374,1751417432140,-490.0,0.00016438,2]
[368968376,1751417432149,-490.0,0.00016438,2]
[368968378,1751417432158,-490.0,0.00016438,2]
[368968380,1751417432167,-490.0,0.00016438,2]
[368968382,1751417432176,-490.0,0.00016438,2]
[368968384,1751417432185,-240.76609717,0.00016438,2]
[368968386,1751417432195,-490.0,0.00016438,2]
[368968388,1751417432204,-611.18,0.00016438,2]
[368968390,1751417432213,-490.0,0.00016438,2]
[368968392,1751417432224,-490.0,0.00016438,2]
[368968394,1751417432233,-490.0,0.00016438,2]
[368968395,1751417432242,-1086.78,0.00016438,2]
[368968397,1751417432252,-490.0,0.00016438,2]
[368968399,1751417432261,-490.0,0.00016438,2]
[368968400,1751417432271,-490.0,0.00016438,2]
[368968402,1751417432280,-490.0,0.00016438,2]
[368968404,1751417432290,-157.48,0.00016438,2]
[368968406,1751417432299,-490.0,0.00016438,2]
[368968408,1751417432308,-490.0,0.00016438,2]
[368968410,1751417432318,-745.94,0.00016438,2]
[368968412,1751417432328,-490.0,0.00016438,2]
[368968414,1751417432337,-490.0,0.00016438,2]
[368968416,1751417432347,-490.0,0.00016438,2]
[368968418,1751417432356,-288.63201817,0.00016438,2]
[368968420,1751417432366,-490.0,0.00016438,2]
[368968422,1751417432375,-490.0,0.00016438,2]
[368968424,1751417432384,-1269.87,0.00016438,2]
[368968426,1751417432394,-150.0,0.00016438,2]
[368968428,1751417432403,-150.0,0.00016438,2]
[368968430,1751417432414,-490.0,0.00016438,2]
[368968432,1751417432424,-490.0,0.00016438,2]
[368968435,1751417432433,-150.0,0.00016438,2]
[368968437,1751417432443,-490.0,0.00016438,2]
[368968439,1751417432452,-490.0,0.00016438,2]
[368968441,1751417432461,-150.0,0.00016438,2]
[368968442,1751417432471,-490.0,0.00016438,2]
[368968444,1751417432481,-490.0,0.00016438,2]
[368968446,1751417432490,-364.94375527,0.00016438,2]
[368968448,1751417432499,-273.20790522,0.00016438,2]
[368968450,1751417432508,-490.0,0.00016438,2]
[368968452,1751417432518,-490.0,0.00016438,2]
[368968455,1751417432528,-490.0,0.00016438,2]
[368968457,1751417432538,-490.0,0.00016438,2]
[368968459,1751417432547,-490.0,0.00016438,2]
[368968461,1751417432557,-490.0,0.00016438,2]
[368968463,1751417432566,-514.11,0.00016438,2]
[368968465,1751417432575,-490.0,0.00016438,2]
[368968467,1751417432584,-490.0,0.00016438,2]
[368968469,1751417432594,-548.96,0.00016438,2]
[368968471,1751417432603,-490.0,0.00016438,2]
[368968473,1751417432613,-490.0,0.00016438,2]
[368968475,1751417432622,-490.0,0.00016438,2]
[368968477,1751417432631,-490.0,0.00016438,2]
[368968478,1751417432640,-490.0,0.00016438,2]
[368968481,1751417432649,-490.0,0.00016438,2]
[368968482,1751417432658,-490.0,0.00016438,2]
[368968484,1751417432667,-490.0,0.00016438,2]
[368968486,1751417432677,-500.0,0.00016438,2]
[368968488,1751417432686,-490.0,0.00016438,2]
[368968490,1751417432695,-490.0,0.00016438,2]
[368968492,1751417432704,-490.0,0.00016438,2]
[368968494,1751417432713,-150.0,0.00016438,2]
[368968496,1751417432722,-182.9847394,0.00016438,2]
[368968498,1751417432732,-490.0,0.00016438,2]
[368968500,1751417432741,-500.0,0.00016438,2]
[368968502,1751417432750,-490.0,0.00016438,2]
[368968504,1751417432759,-490.0,0.00016438,2]
[368968506,1751417432768,-490.0,0.00016438,2]
[368968508,1751417432783,-150.0,0.00016438,2]
[368968510,1751417432792,-490.0,0.00016438,2]
[368968512,1751417432801,-490.0,0.00016438,2]
[368968514,1751417432811,-490.0,0.00016438,2]
[368968516,1751417432821,-490.0,0.00016438,2]
[368968518,1751417432831,-509.7,0.00016438,2]
[368968520,1751417432841,-490.0,0.00016438,2]
[368968522,1751417432852,-490.0,0.00016438,2]
[368968524,1751417432861,-490.0,0.00016438,2]
[368968526,1751417432871,-490.0,0.00016438,2]
[368968528,1751417432880,-490.0,0.00016438,2]
[368968530,1751417432889,-490.0,0.00016438,2]
[368968532,1751417432898,-490.0,0.00016438,2]
[368968534,1751417432908,-490.0,0.00016438,2]
[368968536,1751417432916,-490.0,0.00016438,2]
[368968538,1751417432926,-490.0,0.00016438,2]
[368968540,1751417432935,-490.0,0.00016438,2]
[368968542,1751417432946,-490.0,0.00016438,2]
[368968544,1751417432955,-490.0,0.00016438,2]
[368968546,1751417432964,-490.0,0.00016438,2]
[368968548,1751417432973,-490.0,0.00016438,2]
[368968550,1751417432983,-490.0,0.00016438,2]
[368968552,1751417432992,-490.0,0.00016438,2]
[368968554,1751417433001,-490.0,0.00016438,2]
[368968556,1751417433010,-490.0,0.00016438,2]
[368968558,1751417433019,-490.0,0.00016438,2]
[368968560,1751417433028,-490.0,0.00016438,2]
[368968562,1751417433037,-490.0,0.00016438,2]
[368968564,1751417433047,-490.0,0.00016438,2]
[368968566,1751417433056,-490.0,0.00016438,2]
[368968568,1751417433066,-490.0,0.00016438,2]
[368968570,1751417433076,-490.0,0.00016438,2]
[368968572,1751417433085,-490.0,0.00016438,2]
[368968574,1751417433094,-577.55,0.00016438,2]
[368968576,1751417433103,-490.0,0.00016438,2]
[368968578,1751417433113,-490.0,0.00016438,2]
[368968579,1751417433123,-490.0,0.00016438,2]
[368968581,1751417433133,-490.0,0.00016438,2]
[368968584,1751417433143,-619.93,0.00016438,2]
[368968585,1751417433152,-490.0,0.00016438,2]
[368968587,1751417433162,-490.0,0.00016438,2]
[368968589,1751417433171,-490.0,0.00016438,2]
[368968592,1751417433181,-725.87,0.00016438,2]
[368968593,1751417433191,-490.0,0.00016438,2]
[368968596,1751417433201,-490.0,0.00016438,2]
[368968597,1751417433210,-490.0,0.00016438,2]
[368968600,1751417433221,-490.0,0.00016438,2]
[368968602,1751417433230,-490.0,0.00016438,2]
[368968603,1751417433240,-490.43,0.00016438,2]
[368968605,1751417433250,-490.0,0.00016438,2]
[368968607,1751417433259,-491.72595313,0.00016438,2]
[368968609,1751417433269,-657.58,0.00016438,2]
[368968612,1751417433280,-490.0,0.00016438,2]
[368968614,1751417433290,-490.0,0.00016438,2]
[368968615,1751417433299,-490.0,0.00016438,2]
[368968617,1751417433309,-490.0,0.00016438,2]
[368968620,1751417433319,-490.0,0.00016438,2]
[368968621,1751417433329,-490.0,0.00016438,2]
[368968624,1751417433340,-490.0,0.00016438,2]
[368968626,1751417433349,-597.9,0.00016438,2]
[368968628,1751417433359,-490.0,0.00016438,2]
[368968629,1751417433368,-153.59,0.00016438,2]
[368968631,1751417433379,-490.0,0.00016438,2]
[368968633,1751417433388,-490.0,0.00016438,2]
[368968635,1751417433397,-490.0,0.00016438,2]
[368968637,1751417433406,-490.0,0.00016438,2]
[368968639,1751417433416,-490.0,0.00016438,2]
[368968641,1751417433427,-490.0,0.00016438,2]
[368968643,1751417433436,-490.0,0.00016438,2]
[368968645,1751417433446,-490.0,0.00016438,2]
[368968647,1751417433456,-632.15,0.00016438,2]
[368968649,1751417433466,-505.08,0.00016438,2]
[368968651,1751417433476,-283.65159694,0.00016438,2]
[368968653,1751417433485,-192.355281,0.00016438,2]
[368968655,1751417433495,-490.0,0.00016438,2]
[368968657,1751417433504,-157.847297,0.00016438,2]
[368968659,1751417433513,-490.0,0.00016438,2]
[368968661,1751417433524,-537.45,0.00016438,2]
[368968663,1751417433534,-1500.0,0.00016438,2]
[368968665,1751417433543,-490.0,0.00016438,2]
[368968667,1751417433553,-171.883432,0.00016438,2]
[368968669,1751417433562,-164.769667,0.00016438,2]
[368968671,1751417433572,-490.0,0.00016438,2]
[368968673,1751417433581,-460.505034,0.00016438,2]
[368968675,1751417433590,-490.0,0.00016438,2]
[368968677,1751417433600,-490.0,0.00016438,2]
[368968679,1751417433609,-490.0,0.00016438,2]
[368968680,1751417433619,-490.0,0.00016438,2]
[368968681,1751417433628,-490.0,0.00016438,2]
[368968682,1751417433638,-490.0,0.00016438,2]
[368968683,1751417433647,-490.0,0.00016438,2]
[368968684,1751417433657,-490.0,0.00016438,2]
[368968685,1751417433667,-490.0,0.00016438,2]
[368968686,1751417433676,-490.0,0.00016438,2]
[368968687,1751417433686,-490.0,0.00016438,2]
[368968688,1751417433695,-490.0,0.00016438,2]
[368968689,1751417433705,-490.0,0.00016438,2]
[368968690,1751417433715,-490.0,0.00016438,2]
[368968691,1751417433724,-490.0,0.00016438,2]
[368968693,1751417433733,-543.73,0.00016438,2]
[368968695,1751417433743,-490.0,0.00016438,2]
[368968697,1751417433752,-1589.68,0.00016438,2]
[368968699,1751417433761,-490.0,0.00016438,2]
[368968701,1751417433771,-490.0,0.00016438,2]
[368968703,1751417433785,-490.0,0.00016438,2]
[368968704,1751417433795,-490.0,0.00016438,2]
[368968706,1751417433804,-490.0,0.00016438,2]
[368968708,1751417433814,-490.0,0.00016438,2]
[368968711,1751417433824,-490.0,0.00016438,2]
[368968712,1751417433833,-490.0,0.00016438,2]
[368968714,1751417433843,-490.0,0.00016438,2]
[368968717,1751417433855,-246.9882849,0.00016438,2]
[368968719,1751417433864,-490.0,0.00016438,2]
[368968720,1751417433875,-1588.26,0.00016438,2]
[368968722,1751417433884,-490.0,0.00016438,2]
[368968724,1751417433894,-490.0,0.00016438,2]
[368968726,1751417433903,-490.0,0.00016438,2]
[368968728,1751417433912,-490.0,0.00016438,2]
[368968730,1751417433921,-686.39,0.00016438,2]
[368968732,1751417433930,-490.0,0.00016438,2]
[368968734,1751417433940,-490.0,0.00016438,2]
[368968736,1751417433951,-490.0,0.00016438,2]
[368968738,1751417433959,-490.0,0.00016438,2]
[368968740,1751417433968,-490.0,0.00016438,2]
[368968742,1751417433978,-667.78,0.00016438,2]
[368968744,1751417433987,-490.0,0.00016438,2]
[368968746,1751417433996,-490.0,0.00016438,2]
[368968749,1751417434007,-245.73,0.00016438,2]
[368968751,1751417434016,-490.0,0.00016438,2]
[368968753,1751417434026,-173.12349788,0.00016438,2]
[368969122,1751417437674,-200.0,0.0001541,7]
[368969124,1751417437684,-316.87650212,0.00016438,2]
[368969126,1751417437693,-520.39580209,0.00016438,2]
[368969127,1751417437703,-490.0,0.00016438,2]
[368969129,1751417437712,-496.73,0.00016438,2]
[368969131,1751417437723,-490.0,0.00016438,2]
[368969134,1751417437732,-249.32,0.00016438,2]
[368969135,1751417437742,-490.0,0.00016438,2]
[368969137,1751417437751,-546.60815394,0.00016438,2]
[368969143,1751417437798,-1382.24184606,0.00016438,2]
[368969145,1751417437807,-490.0,0.00016438,2]
[368969147,1751417437818,-490.0,0.00016438,2]
[368969149,1751417437827,-368.26896749,0.00016438,2]
[368969151,1751417437836,-490.0,0.00016438,2]
[368969153,1751417437845,-41.57597464,0.00016438,2]
[368969155,1751417437858,-279.94,0.00016438,2]
[368969157,1751417437875,-168.48402536,0.00016438,2]
[368969159,1751417437884,-231.51597464,0.00016438,2]
[368969162,1751417437895,-258.48402536,0.00016438,2]
[368969164,1751417437904,-490.0,0.00016438,2]
[368969166,1751417437913,-845.9,0.00016438,2]
[368969168,1751417437923,-490.0,0.00016438,2]
[368969169,1751417437932,-490.0,0.00016438,2]
[368969171,1751417437941,-958.92,0.00016438,2]
[368969173,1751417437951,-490.0,0.00016438,2]
[368969175,1751417437960,-490.0,0.00016438,2]
[368969178,1751417437972,-3014.91,0.00016438,2]
[368969180,1751417437983,-490.0,0.00016438,2]
[368969181,1751417437992,-490.0,0.00016438,2]
[368969183,1751417438002,-728.23,0.00016438,2]
[368969185,1751417438011,-490.0,0.00016438,2]
[368969187,1751417438022,-490.0,0.00016438,2]
[368969189,1751417438031,-546.87,0.00016438,2]
[368969191,1751417438041,-541.91,0.00016438,2]
[368969193,1751417438050,-490.0,0.00016438,2]
[368969195,1751417438059,-500.0,0.00016438,2]
[368969197,1751417438069,-490.0,0.00016438,2]
[368969199,1751417438079,-490.0,0.00016438,2]
[368969201,1751417438088,-1000.0,0.00016438,2]
[368969203,1751417438098,-490.0,0.00016438,2]
[368969205,1751417438107,-490.0,0.00016438,2]
[368969207,1751417438117,-628.92,0.00016438,2]
[368969209,1751417438127,-152.88570535,0.00016438,2]
[368969211,1751417438136,-490.0,0.00016438,2]
[368969213,1751417438145,-150.0,0.00016438,2]
[368969215,1751417438154,-500.0,0.00016438,2]
[368969217,1751417438163,-142.83886391,0.00016438,2]
[368969350,1751417440051,-347.16113609,0.00016438,2]
[368969352,1751417440061,-490.0,0.00016438,2]
[368969354,1751417440071,-511.69045408,0.00016438,2]
[368969356,1751417440081,-490.0,0.00016438,2]
[368969358,1751417440091,-490.0,0.00016438,2]
[368969360,1751417440101,-490.0,0.00016438,2]
[368969362,1751417440111,-490.0,0.00016438,2]
[368969364,1751417440120,-490.0,0.00016438,2]
[368969367,1751417440130,-269.70921849,0.00016438,2]
[368969369,1751417440139,-1591.09,0.00016438,2]
[368969371,1751417440148,-490.0,0.00016438,2]